Cogmind - Beta 16 @@@ ROGUE MODE // 2026.01.18 @ 12:28:10 Player: DreamCore Result: Destroyed by G-47 Trooper with Particle Gun Performance ------------- Evolutions (3) 1500 Regions Visited (8) 1600 Robots Destroyed (48) 240 Value Destroyed (1383) 1383 Prototype IDs (4) 80 Alien Tech Used (0) 0 Bonus (200) 200 TOTAL SCORE: 5003 Bonus ------- Entered Garrisons 200 Cogmind --------- Core Integrity 0/700 Matter 300/300 Energy 100/100 System Corruption 0% Temperature Cool (9) Movement Core (50) Location -7/Garrison Parts ------- > --- POWER (1) -------- (None) > --- PROPULSION (5) --- (None) > --- UTILITY (5) ------ Improved Signal Interpreter Hacking Suite > --- WEAPON (2) ------- (None) > --- INVENTORY (5) ---- Cesium-ion Thruster Cesium-ion Thruster Advanced ECM Suite Hacking Suite Hacking Suite Peak State ------------ > --- POWER ------------ Light Ion Engine > --- PROPULSION ------- Cesium-ion Thruster Cesium-ion Thruster Improved VTOL Module Improved VTOL Module Improved VTOL Module > --- UTILITY ---------- Structural Scanner Improved Sensor Array Improved Signal Interpreter Transmission Jammer Hacking Suite > --- WEAPON ----------- Greatsword > --- INVENTORY -------- Light Ion Engine Cesium-ion Thruster Cesium-ion Thruster Advanced ECM Suite [Rating: 42] Favorites ----------- Power Light Nuclear Core Engine Ion Engine Power Core Light Nuclear Core Propulsion Carbon-fiber Leg Treads Light Treads Leg Carbon-fiber Leg Flight Unit Improved VTOL Module Utility Medium Storage Unit Device Structural Scanner Storage Medium Storage Unit Processor Targeting Computer Hackware Hacking Suite Protection Weapon Shielding Weapon Assault Rifle Energy Gun Medium Laser Ballistic Gun Assault Rifle Launcher Rocket Launcher Special Weapon Mining Laser Slashing Weapon Makeshift Axe Build | -11 -10 -10 -10 -9 -8 -8 -7 -7 ------- Run | Yrd Mat Min Exi Min Mat Sto Fac Gar Slots Evolved 6 | . . . . . 4 . 2 . Power . | . . . . . . . . . Propulsion 3 | . . . . . 2 . 1 . Utility 3 | . . . . . 2 . 1 . Weapon . | . . . . . . . . . Parts Attached 59 | . 15 3 5 1 14 11 10 . Power 7 | . 1 . 1 . 1 4 . . Engine 4 | . 1 . . . . 3 . . Core 3 | . . . 1 . 1 1 . . Reactor . | . . . . . . . . . Propulsion 18 | . 4 . 2 . 6 5 1 . Treads 2 | . 2 . . . . . . . Leg 9 | . 2 . 2 . 5 . . . Wheel . | . . . . . . . . . Hover . | . . . . . . . . . Flight 7 | . . . . . 1 5 1 . Utility 20 | . 5 2 1 . 5 2 5 . Device 9 | . . 1 1 . 4 . 3 . Storage 3 | . 2 1 . . . . . . Processor 4 | . 2 . . . 1 . 1 . Hackware 3 | . . . . . . 2 1 . Protection 1 | . 1 . . . . . . . Artifact . | . . . . . . . . . Weapon 14 | . 5 1 1 1 2 . 4 . Energy Gun 2 | . 1 1 . . . . . . Energy Cannon . | . . . . . . . . . Ballistic Gun 4 | . 2 . . . 2 . . . Ballistic Cannon . | . . . . . . . . . Launcher 1 | . . . . 1 . . . . Special Weapon 2 | . 1 . . . . . 1 . Impact Weapon . | . . . . . . . . . Slashing Weapon 5 | . 1 . 1 . . . 3 . Piercing Weapon . | . . . . . . . . . Special Melee Weapon . | . . . . . . . . . Unidentified Prototypes 2 | . . . . . 1 1 . . Parts Lost 24 | . 2 . 3 . . 8 . 11 Power 3 | . . . 1 . . 1 . 1 Propulsion 11 | . . . 1 . . 5 . 5 Utility 4 | . 1 . . . . . . 3 Weapon 6 | . 1 . 1 . . 2 . 2 Highest Loss Streak 9 | . 2 . 3 . . 8 . 9 To Critical Strikes . | . . . . . . . . . Average Backups 7 | . 8 7 7 10 9 9 4 4 Power . | . 1 1 . . . . . . Propulsion 1 | . . . 1 1 2 5 1 2 Utility 3 | . 3 3 3 5 3 3 2 2 Weapon 2 | . 3 3 2 4 3 . . . Tool/Special . | . . . . . . . . . Unused Backups 22 | . 7 . . . 7 1 3 4 Power 2 | . 1 . . . . . 1 . Propulsion 6 | . 2 . . . 1 . 1 2 Utility 7 | . 1 . . . 2 1 1 2 Weapon 7 | . 3 . . . 4 . . . Tool/Special . | . . . . . . . . . Average Slot Usage (%) 93 | . 99 100 89 100 95 96 89 68 Engine 6 | . 14 14 2 . . 5 7 1 Core 4 | . . . 11 14 9 3 . . Leg 21 | . 24 28 18 28 33 32 . . Flight 5 | . . . . . . 2 37 23 Device 10 | . . 5 14 14 23 . 18 15 Storage 10 | . 14 14 14 14 9 8 . . Processor 6 | . 13 8 . . 1 9 9 7 Hackware 3 | . . . . . . 17 8 7 Energy Gun 7 | . 2 14 23 11 . . . . Ballistic Gun 9 | . 22 14 2 9 9 7 . . Special Weapon 1 | . 2 . . . . . . 4 Slashing Weapon 3 | . . . 1 4 7 8 5 6 Peak Build Rating 42 | . 9 8 20 20 36 33 42 41 Average Rating 19 | . 7 8 12 18 31 31 36 29 On Entrance 18 | 6 6 8 8 20 18 30 25 41 Avg Prop Armor Cover (%) 4 | . . . . . . 3 4 8 Naked Turns . | . . . . . . . . . Heaviest Build 86 | 11 86 20 22 22 25 24 11 11 Greatest Support 62 | 20 40 20 30 30 62 62 21 21 Greatest Overweight (x) 2 | . 2 . 2 . . 1 . 1 Average Overweight (x) . | . . . . . . . . . Largest Inventory Capacity 25 | . 25 10 10 10 10 10 5 5 Average Capacity 9 | . 10 9 10 10 10 9 5 5 Most Carried 13 | . 13 8 10 10 10 10 5 5 Average Carried 7 | . 8 7 7 10 9 9 4 4 Final Capacity 10 | 8 8 10 10 10 10 5 5 5 Final Carried 10 | 6 8 7 10 10 10 2 4 5 Class Distribution -------------------- 53% | Mutant 27% | Scavenger-Mutant 7% | Infiltrator-Ninja 3% | Scout Dominant Class ---------------- Mutant | -10/Materials Mutant | -10/Mines Mutant | -10/Exiles Scavenger-Mutant | -9/Mines Scavenger-Mutant | -8/Materials Scavenger-Mutant | -8/Storage Infiltrator-Ninja | -7/Factory Mutant | -7/Garrison Resources | -11 -10 -10 -10 -9 -8 -8 -7 -7 ----------- Run | Yrd Mat Min Exi Min Mat Sto Fac Gar Matter Collected 1039 | 200 202 35 120 . 194 84 204 . Remotely . | . . . . . . . . . Salvage Created 2081 | . 217 . 375 . 700 463 244 82 Parts 111 | . 12 . 16 . 31 31 18 3 Haulers Intercepted 4 | . . . . . 2 . 2 . Recyclers Shooed . | . . . . . . . . . Parts Field Recycled . | . . . . . . . . . Retrieved Matter . | . . . . . . . . . Parts Self-Destructed . | . . . . . . . . . Prevented . | . . . . . . . . . Parts Restored . | . . . . . . . . . Kills | -11 -10 -10 -10 -9 -8 -8 -7 -7 ------- Run | Yrd Mat Min Exi Min Mat Sto Fac Gar Combat Hostiles Destroyed 32 | . 4 . 3 . 9 13 . 3 Melee 24 | . . . . . 9 12 . 3 Guns 8 | . 4 . 3 . . 1 . . Classes Destroyed 11 | . 2 . 1 . 4 2 2 . Worker 1 | . . . . . . . 1 . Builder 4 | . . . . . . 1 3 . Hauler 4 | . . . . . 2 . 2 . Recycler 1 | . . . . . 1 . . . Mechanic 1 | . . . . . . . 1 . Operator 1 | . . . . . 1 . . . Watcher 4 | . 3 . . . . 1 . . Swarmer 10 | . . . . . . 7 . 3 Grunt 13 | . 4 . 1 . 5 3 . . Sentry 5 | . . . . . 2 3 . . Hunter 4 | . . . 2 . 2 . . . Best Kill Streak 6 | . 2 . 1 . 6 3 3 3 Combat Bots Only 4 | . 2 . 1 . 4 3 . 3 Max Kills in Single Turn 1 | . 1 . 1 . 1 1 1 1 Gunslinging . | . . . . . . . . . Exploded . | . . . . . . . . . Melee 1 | . . . . . 1 1 . 1 Uniques/NPCs Destroyed . | . . . . . . . . . Combat | -11 -10 -10 -10 -9 -8 -8 -7 -7 -------- Run | Yrd Mat Min Exi Min Mat Sto Fac Gar Hostile Shots Fired 317 | . 23 . . . 62 141 . 91 Missed 111 | . 3 . . . 23 58 . 27 Hits 206 | . 20 . . . 39 83 . 64 Melee 5 | . . . . . . 5 . . Projectile 201 | . 20 . . . 39 78 . 64 AOE 10 | . . . . . . 1 . 9 Critical Strikes 10 | . 1 . . . 1 5 . 3 Damage Taken 3233 | . 279 . 283 . 491 1025 . 1155 Core 1022 | . 28 . . . 87 197 . 710 Absorbed by Shields 52 | . . . . . . . . 52 Regen/Repaired (Parts) 67 | . . . . . 67 . . . Core Remaining (%) 78 | 100 . . . 88 . 48 . . Volleys Fired 94 | . 30 . 50 . 1 6 6 1 Largest 2 | . 2 . 2 . 1 1 1 1 Hottest 115 | . 100 . 115 . 28 25 5 5 Shots Fired 123 | . 52 . 57 . 1 6 6 1 Gun 103 | . 44 . 52 . 1 6 . . Cannon . | . . . . . . . . . Launcher . | . . . . . . . . . Special 20 | . 8 . 5 . . . 6 1 Kinetic 47 | . 40 . . . 1 6 . . Thermal 69 | . 12 . 57 . . . . . Explosive . | . . . . . . . . . Electromagnetic . | . . . . . . . . . Robot Hit Streak 7 | . 7 . 7 . . 3 4 . Robot Miss Streak 2 | . 2 . 2 . 1 1 1 . Penetration Max . | . . . . . . . . . Secondary Targets 1 | . 1 . . . . . . . Max Gunslinging Chain 1 | . 1 . . . . . . . Shots Hit Robots 157 | . 29 . 36 . 32 33 21 6 Core Hits 66 | . 15 . 15 . 14 15 3 4 Critical Kills . | . . . . . . . . . Critical Parts Destroyed . | . . . . . . . . . Critical Strikes 11 | . . . 6 . 2 2 1 . Burn 6 | . . . 6 . . . . . Sever 5 | . . . . . 2 2 1 . Melee Attacks 145 | . 4 . . . 39 54 32 16 Impact . | . . . . . . . . . Slashing 145 | . 4 . . . 39 54 32 16 Piercing . | . . . . . . . . . Sneak Attacks 16 | . . . . . 6 3 7 . Combat Hostiles . | . . . . . . . . . Follow-up Attacks . | . . . . . . . . . Damage Inflicted 5005 | . 362 18 510 . 1405 1294 1205 211 Guns 939 | . 318 . 510 . . 111 . . Cannons . | . . . . . . . . . Explosions . | . . . . . . . . . Melee 3982 | . . . . . 1405 1183 1205 189 Ramming 84 | . 44 18 . . . . . 22 Kinetic 368 | . 257 . . . . 111 . . Thermal 571 | . 61 . 510 . . . . . Explosive . | . . . . . . . . . Electromagnetic . | . . . . . . . . . Impact . | . . . . . . . . . Slashing 3982 | . . . . . 1405 1183 1205 189 Piercing . | . . . . . . . . . Highest Corruption 11 | . . . 8 8 . 11 . . Average Corruption 8 | . . . 8 8 . 10 . . Corruption Purged . | . . . . . . . . . Corruption Blocked . | . . . . . . . . . Effects 44 | . . . 40 2 . 2 . . Message Errors 4 | . . . 4 . . . . . Matter Fused 6 | . . . 6 . . . . . Heat Flow Errors 10 | . . . 9 1 . . . . Energy Discharges 7 | . . . 7 . . . . . Data Loss (minor) 9 | . . . 8 1 . . . . Data Loss (major) 3 | . . . 2 . . 1 . . Misfires 3 | . . . 3 . . . . . Alerts 1 | . . . 1 . . . . . Misdirections 1 | . . . . . . 1 . . Overload Shots . | . . . . . . . . . Overflow Damage 427 | . . . . . 34 65 315 13 Projectiles . | . . . . . . . . . Explosions . | . . . . . . . . . Melee 427 | . . . . . 34 65 315 13 Knockbacks 1 | . . 1 . . . . . . Impact 1 | . . 1 . . . . . . Kinetic . | . . . . . . . . . Secondary . | . . . . . . . . . Self-Inflicted Damage 9 | . . . . . . . . 9 Shots . | . . . . . . . . . Rammed 8 | . . . . . . . . 8 Targets Rammed 19 | . 8 3 . . . . . 8 Kicked 11 | . 8 3 . . . . . . Crushed . | . . . . . . . . . Highest Temperature 335 | . 157 . 335 209 8 15 . . Average Temperature 66 | . 28 . 91 117 8 6 . . Received Heat Transfer 805 | . 183 . . . 153 306 . 163 Siege Activations . | . . . . . . . . . Martial Activations . | . . . . . . . . . Shielding Activations . | . . . . . . . . . Robots Disrupted . | . . . . . . . . . Combat Hostiles . | . . . . . . . . . Robots Corrupted . | . . . . . . . . . Combat Hostiles . | . . . . . . . . . Parts Fried . | . . . . . . . . . Impact Corruptions . | . . . . . . . . . Robots Melted . | . . . . . . . . . Combat Hostiles . | . . . . . . . . . Parts Melted 2 | . . . 2 . . . . . Heat Transferred 2035 | . 148 . 1887 . . . . . Parts Sabotaged . | . . . . . . . . . Parts Stolen . | . . . . . . . . . Parts Stripped . | . . . . . . . . . Power Chain Reactions . | . . . . . . . . . Alert | -11 -10 -10 -10 -9 -8 -8 -7 -7 ------- Run | Yrd Mat Min Exi Min Mat Sto Fac Gar Maximum Alert Level 1 | . . . . . . 1 . . Low Security (%) 97 | . 100 100 . 100 100 84 100 100 Level 1 2 | . . . . . . 15 . . Level 2 . | . . . . . . . . . Level 3 . | . . . . . . . . . Level 4 . | . . . . . . . . . Level 5 . | . . . . . . . . . High Security . | . . . . . . . . . Max Security . | . . . . . . . . . Peak Influence 244 | . 50 . . . 116 244 86 80 Initial 86 | . . . . . . 24 86 1 Average 34 | . 6 . . . 52 86 31 43 Influence Increases 1406 | . 161 . 70 . 311 534 165 165 Destroy 0b10 Robot/C 640 | . 80 . 60 . 180 260 . 60 Destroy 0b10 Robot/NC 90 | . 15 . 10 . 20 10 35 . Destroy Leader 146 | . 26 . . . 54 52 4 10 Successful Hack 84 | . 32 . . . 12 . 40 . Disable Machine 90 | . . . . . . 30 60 . Anti-Garrison Action 50 | . . . . . . . . 50 Destroy Structure 21 | . 8 . . . . 2 11 . Partial Spotted 60 | . . . . . 15 30 15 . Lose Combat Pursuer 225 | . . . . . 30 150 . 45 Influence Decreases 1351 | . 161 . 70 . 252 403 353 112 Entered New Map 140 | . . . . . . 35 104 1 Time Decay 1020 | . 161 . 70 . 252 288 249 . Lost Part 190 | . . . . . . 80 . 110 Lost Ally 1 | . . . . . . . . 1 Squads Dispatched 4 | . . . . . 1 1 2 . Investigation 1 | . . . . . . . 1 . Extermination 1 | . . . . . . . 1 . Reinforcement 2 | . . . . . 1 1 . . Assault . | . . . . . . . . . Garrison . | . . . . . . . . . Intercept . | . . . . . . . . . Searches Triggered . | . . . . . . . . . Construction Impeded . | . . . . . . . . . Haulers Reinforced . | . . . . . . . . . Active Scanning Responses . | . . . . . . . . . Cargo Convoy Interrupts . | . . . . . . . . . Stealth | -11 -10 -10 -10 -9 -8 -8 -7 -7 --------- Run | Yrd Mat Min Exi Min Mat Sto Fac Gar Distress Signals 3 | . . . . . 1 2 . . Communications Jammed 7 | . . . . . . . . 7 Distress Signals 7 | . . . . . . . . 7 Times Spotted 80 | . 14 . . . 17 30 4 15 Peak Tracking Total 11 | . 3 . . . 5 7 1 11 Tactical Retreats 12 | . . . . . 2 8 . 2 ECM-based Alert Blocks 3 | . . . . . . 3 . . Traps | -11 -10 -10 -10 -9 -8 -8 -7 -7 ------- Run | Yrd Mat Min Exi Min Mat Sto Fac Gar Traps Triggered 3 | . . . . . . . . 3 Indirectly . | . . . . . . . . . Trap Hack Attempts . | . . . . . . . . . Triggered . | . . . . . . . . . Disarmed . | . . . . . . . . . Reprogrammed . | . . . . . . . . . Reused . | . . . . . . . . . Traps Extracted . | . . . . . . . . . Installed . | . . . . . . . . . Triggered . | . . . . . . . . . Machines | -11 -10 -10 -10 -9 -8 -8 -7 -7 ---------- Run | Yrd Mat Min Exi Min Mat Sto Fac Gar Machines Disabled 6 | . . . . . . 2 4 . Max in Single Turn 1 | . . . . . . 1 1 . Machines Repaired . | . . . . . . . . . Machines Dismantled . | . . . . . . . . . Machines Sabotaged . | . . . . . . . . . Overloaded Fab Kills . | . . . . . . . . . Hacking | -11 -10 -10 -10 -9 -8 -8 -7 -7 --------- Run | Yrd Mat Min Exi Min Mat Sto Fac Gar Machines Accessed 32 | . 9 . 3 . 5 5 9 1 Terminals 20 | . 7 . . . 2 5 5 1 Fabricators 1 | . . . . . . . 1 . Repair Stations 1 | . . . . . 1 . . . Recycling Units 3 | . 2 . . . . . 1 . Scanalyzers 3 | . . . . . 2 . 1 . Garrison Access 1 | . . . . . . . 1 . Total Hacks 108 | . 24 . 26 . 18 14 24 2 Successful 71 | . 14 . 26 . 11 7 13 . Failed 36 | . 10 . . . 6 7 11 2 Catastrophic 7 | . 2 . . . 1 1 2 1 Database Lockouts 1 | . . . . . 1 . . . Manual 62 | . 26 . . . 10 10 16 . Terminals 57 | . 15 . . . 10 14 16 2 Fabricators 3 | . . . . . . . 3 . Repair Stations 2 | . . . . . 2 . . . Recycling Units 10 | . 9 . . . . . 1 . Scanalyzers 8 | . . . . . 6 . 2 . Garrison Access 2 | . . . . . . . 2 . Terminal Hacks 42 | . 6 . 26 . 3 5 2 . Record 26 | . . . 26 . . . . . Robot Analysis 5 | . 4 . . . 1 . . . Prototype ID Bank 1 | . . . . . . 1 . . Open Door 1 | . . . . . . 1 . . Level Access Points 2 | . . . . . . 1 1 . Terminal Index 4 | . 1 . . . 1 1 1 . Dispatch Records 1 | . . . . . 1 . . . Hauler Manifests 1 | . 1 . . . . . . . Zone Layout 1 | . . . . . . 1 . . Fabricator Hacks 2 | . . . . . . . 2 . Load Schematic 1 | . . . . . . . 1 . Build 1 | . . . . . . . 1 . Repair Station Hacks 2 | . . . . . 2 . . . Scan Component 1 | . . . . . 1 . . . Repair 1 | . . . . . 1 . . . Recycling Unit Hacks 2 | . 1 . . . . . 1 . Report Inventory 2 | . 1 . . . . . 1 . Scanalyzer 5 | . . . . . 4 . 1 . Insert Component 2 | . . . . . 2 . . . Analyze 2 | . . . . . 2 . . . Retrieve Study 1 | . . . . . . . 1 . Garrison Access Hacks 2 | . . . . . . . 2 . Unlock Access 1 | . . . . . . . 1 . Coupler Status 1 | . . . . . . . 1 . Unauthorized Hacks 16 | . 7 . . . 2 2 5 . Terminals 13 | . 4 . . . 2 2 5 . Track 2 | . 1 . . . . . 1 . Assimilate 3 | . 2 . . . . . 1 . Botnet 8 | . 1 . . . 2 2 3 . Fabricators . | . . . . . . . . . Repair Stations . | . . . . . . . . . Recycling Units 3 | . 3 . . . . . . . Reject 2 | . 2 . . . . . . . Mask 1 | . 1 . . . . . . . Scanalyzers . | . . . . . . . . . Garrison Access . | . . . . . . . . . Data Cores Recovered . | . . . . . . . . . Used . | . . . . . . . . . Hacking Detections 28 | . 8 . . . 5 5 9 1 Full Trace Events 2 | . . . . . . . 1 1 Feedback Events . | . . . . . . . . . Feedback Blocked . | . . . . . . . . . Robot Schematics Acquired . | . . . . . . . . . Robots Built . | . . . . . . . . . Authchips . | . . . . . . . . . Time . | . . . . . . . . . Total Robot Build Rating . | . . . . . . . . . Part Schematics Acquired 2 | . . . . . 2 . . . Parts Built 2 | . . . . . . . 2 . Authchips . | . . . . . . . . . Time 36 | . . . . . . . 36 . Total Part Build Rating 6 | . . . . . . . 6 . Part Studies Acquired 1 | . . . . . . . 1 . Parts Repaired 1 | . . . . . 1 . . . Time 38 | . . . . . 38 . . . Parts Recycled . | . . . . . . . . . Recycled Matter . | . . . . . . . . . Retrieved Matter . | . . . . . . . . . Retrieved Components . | . . . . . . . . . Parts Scanalyzed 2 | . . . . . 2 . . . Part Schematics Acquired 2 | . . . . . 2 . . . Parts Damaged . | . . . . . . . . . Bothacking | -11 -10 -10 -10 -9 -8 -8 -7 -7 ------------ Run | Yrd Mat Min Exi Min Mat Sto Fac Gar Used RIF Installer . | . . . . . . . . . Robots Hacked 2 | . . . . . . . 2 . Non-combat 2 | . . . . . . . 2 . Combat . | . . . . . . . . . Robot Hacks Applied 2 | . . . . . . . 2 . parse_system 1 | . . . . . . . 1 . find_chute 1 | . . . . . . . 1 . Relay Couplers Released . | . . . . . . . . . Fabnet Peak Effective % . | . . . . . . . . . Robots Rewired 1 | . . . . . . . 1 . Allies Hacked . | . . . . . . . . . Hacks Repelled . | . . . . . . . . . Allies | -11 -10 -10 -10 -9 -8 -8 -7 -7 -------- Run | Yrd Mat Min Exi Min Mat Sto Fac Gar Total Allies 4 | . 2 . . . . . 2 . Largest Group 2 | . 2 2 2 2 2 . 2 2 Highest-Rated Group 26 | . 20 20 20 20 20 . 26 26 Highest-Rated Ally 16 | . 10 10 10 10 10 . 16 16 Total Orders . | . . . . . . . . . Ally Attacks 1 | . . . . . . . . 1 Total Damage 16 | . . . . . . . . 16 Kills . | . . . . . . . . . Allies Corrupted . | . . . . . . . . . Allies Melted . | . . . . . . . . . Intel | -11 -10 -10 -10 -9 -8 -8 -7 -7 ------- Run | Yrd Mat Min Exi Min Mat Sto Fac Gar Active Infowar (turns) 2381 | . . 117 297 . 589 646 569 163 Optics 1025 | . . . . . 120 646 259 . Sensors 594 | . . . . . . . 464 130 Structural 1613 | . . 117 297 . 589 8 446 156 Jamming 49 | . . . . . . . 1 48 ECM 220 | . . . . . 121 35 64 . Robot Analysis Total 5 | . 4 . . . 1 . . . Derelict Logs Recovered 2 | . . 1 . 1 . . . . Drone Launches . | . . . . . . . . . Drone Recoveries . | . . . . . . . . . Exploration | -11 -10 -10 -10 -9 -8 -8 -7 -7 ------------- Run | Yrd Mat Min Exi Min Mat Sto Fac Gar Turns Passed 4911 | . 1167 297 1300 54 645 646 569 233 Spaces Moved 3475 | 1 733 231 611 43 374 427 892 163 Core 57 | . . . . . . . . 57 Treads 47 | . 47 . . . . . . . Legs 2305 | 1 686 231 611 43 374 359 . . Wheels . | . . . . . . . . . Hover . | . . . . . . . . . Flight 1066 | . . . . . . 68 892 106 Fastest Speed 26 | 120 120 120 120 120 120 26 26 26 Average Speed 106 | 120 132 120 189 120 121 108 26 51 Slowest Speed 320 | 120 320 120 260 120 122 190 29 105 Overloaded Moves . | . . . . . . . . . Propulsion Burnouts . | . . . . . . . . . Robots Hopped 2 | . . . . . . 2 . . Potential Cave-ins . | . . . . . . . . . Cave-ins Triggered 1 | . . . 1 . . . . . Exploration Rate (%) 43 | 2 85 52 92 21 26 53 22 34 Regions Visited 8 Branch Regions 4 Pre-discovered Areas . | . . . . . . . . . Known Exits Taken 2 | . . . . . . 1 1 . Unknown Exits Taken 6 | 1 1 1 1 1 1 . . . Scrap Searched . | . . . . . . . . . Spaces Dug 24 | . 8 . 3 . . 2 11 . Terrain Destroyed 24 | . 8 . 3 . . 2 11 . Melee 13 | . . . . . . 2 11 . Projectile 11 | . 8 . 3 . . . . . AOE . | . . . . . . . . . Terrain Rammed . | . . . . . . . . . Walls Destroyed . | . . . . . . . . . Machines Disabled . | . . . . . . . . . Actions | -11 -10 -10 -10 -9 -8 -8 -7 -7 --------- Run | Yrd Mat Min Exi Min Mat Sto Fac Gar Total 4370 | . 855 249 690 45 533 548 1163 287 Wait 424 | . 32 12 12 . 65 45 195 63 Move 3462 | . 732 230 610 42 373 423 891 161 Hop 1 | . . . . . . 1 . . Pick Up 63 | . 19 . 8 . 17 1 17 1 Fast Attach 9 | . 3 . . 1 2 2 1 . Attach 23 | . 5 . 3 . 4 6 5 . Detach . | . . . . . . . . . Swap 42 | . 9 3 5 1 12 5 7 . Drop 51 | . 13 1 2 1 20 5 9 . Fire 94 | . 30 . 50 . 1 6 6 1 Melee 145 | . 4 . . . 39 54 32 16 Ram 8 | . . . . . . . . 8 Kick 11 | . 8 3 . . . . . . Crush . | . . . . . . . . . Escape Stasis 37 | . . . . . . . . 37 Rewire . | . . . . . . . . . Trap . | . . . . . . . . . Miscellaneous . | . . . . . . . . . Route ------- -11/Scrapyard -10/Materials (discovered 4 exits: [*Mat x2] / [*Min x2]) -10/Mines (discovered 4 exits: [*Mat x2] / *Exi / [Sub]) -10/Exiles -9/Mines -8/Materials (discovered 2 exits: Fac / *Sto) -8/Storage -7/Factory (discovered 6 exits: Fac x4 / *Low / Gar) -7/Garrison (discovered 1 exit: [*Fac]) History --------- Turn | Location | Event 1 | -11/Scrapyard | Discovered new exit (range 0) 1 | -11/Scrapyard | Entered Materials 327 | -10/Materials | Build established: Mutant 436 | -10/Materials | Discovered new exit (range 12) 643 | -10/Materials | Discovered new exit (range 5) 867 | -10/Materials | Discovered new exit (range 16) 1122 | -10/Materials | Discovered new exit (range 15) 1168 | -10/Materials | Entered Mines 1168 | -10/Mines | Accompanied by 2 allies 1355 | -10/Mines | Discovered new exit (range 7) 1414 | -10/Mines | Discovered new exit (range 5) 1415 | -10/Mines | Learned Materials emergency access door positions 1430 | -10/Mines | Deemed a non-threat by the Exiles lab entrance 1430 | -10/Mines | Discovered new exit (range 5) 1449 | -10/Mines | Discovered new exit (range 9) 1465 | -10/Mines | Entered Exiles 1465 | -10/Exiles | Found Exiles lab destroyed 1465 | -10/Exiles | Accompanied by 2 allies 1662 | -10/Exiles | Crushed by falling debris 1693 | -10/Exiles | Lost 3 parts (1p1n1w) 2751 | -10/Exiles | Discovered new exit (range 10) 2765 | -10/Exiles | Entered Mines 2765 | -9/Mines | Accompanied by 2 allies 2800 | -9/Mines | Assembled infested the area 2800 | -9/Mines | Received a Rocket Launcher from a helpful Derelict 2805 | -9/Mines | Assisted by a Guerilla fighting off Assembled 2812 | -9/Mines | Discovered new exit (range 6) 2819 | -9/Mines | Entered Materials 2819 | -8/Materials | Accompanied by 2 allies 2819 | -8/Materials | Evolved 4 slots: Propulsion x2, Utility x2 2820 | -8/Materials | Identified exit to Factory 2896 | -8/Materials | Build established: Scavenger-Mutant 3058 | -8/Materials | Central database locked down 3442 | -8/Materials | Repaired Carbon-fiber Leg 3455 | -8/Materials | Discovered new exit (range 4) 3464 | -8/Materials | Entered Storage 4062 | -8/Storage | Core integrity fell below 50% 4078 | -8/Storage | System corruption reached 10% 4108 | -8/Storage | Lost 8 parts (1p5n2w) 4110 | -8/Storage | Entered Factory 4110 | -7/Factory | Evolved 2 slots: Propulsion x1, Utility x1 4154 | -7/Factory | Fabricated Cesium-ion Thruster (x2) 4307 | -7/Factory | Identified exit to Factory 4518 | -7/Factory | Discovered new exit (range 7) 4521 | -7/Factory | Identified exit to Lower Caves 4653 | -7/Factory | Identified exit to Garrison 4659 | -7/Factory | Build established: Infiltrator-Ninja 4679 | -7/Factory | Entered Garrison 4679 | -7/Garrison | Accompanied by 2 allies 4805 | -7/Garrison | Triggered checkpoint 4821 | -7/Garrison | Triggered checkpoint 4866 | -7/Garrison | Discovered new exit (range 9) 4871 | -7/Garrison | Attempted to access garrison exit controls, blocked by remote lockdown 4877 | -7/Garrison | Core integrity fell below 50% 4883 | -7/Garrison | Triggered checkpoint 4901 | -7/Garrison | Core integrity fell below 20% 4912 | -7/Garrison | Destroyed by G-47 Trooper with Particle Gun Last Messages --------------- 04864_ Transmission Jammer destroyed. 04866_ EXIT=FOUND 04871_ Attempting to access garrison exit controls... 04871_ Remote lockdown engaged. 04876_ Imp. VTOL Module destroyed. 04883_ Beams of light sweep through the air. An alarm sounds. 04885_ S-27 Virus suffers critical hit (Destroy). 04885_ S-27 Virus destroyed. 04890_ Connecting with Garrison Terminal... 04890_ ALERT: Suspicious activity at Terminal G003. Transmitting hostile system tracking data. 04901_ Garrison Terminal disabled. 04903_ Katana destroyed. 04904_ Slammed into S-27 Virus. 04907_ Slammed into G-47 Trooper. 04908_ Slammed into S-27 Virus. 04908_ Destabilizing: Core damaged (-35). 04909_ Slammed into G-47 Trooper. 04910_ Critical hit (Burn: +37). 04910_ Slammed into G-47 Trooper. Map ----- +----------------------------------------------------+ | ?????????????????????????????????????????????????? | | ?????????????????????????????????????????????????? | | ?????????????????????????????????????????????????? | | ?????????????????????????????????????????????????? | | ?????????????????????????????????????????????????? | | ?????????????????????????????????????????????????? | | ?????????????????????????????????????????????????? | | ?????????????????????????????????????????????????? | | ?????????????????????????????????????????????????? | | ?????????????????????????????????????????????????? | | ######???????????????????????????????????????????? | | %= #???????????????????????????????????????????? | | = #???????????????????????????????????????????? | | [% #???????????????????????????????????????????? | | ## +???????????????????????????????????????????? | | ?# =#???????????????????????????????????????????? | | ?# %#????????????????####???????????????????????? | | ?# =#????????????????#""#???????????????????????? | | ?# #????????????????# #???????????????????????? | | ?# #????????????????#"%#???????????????????????? | | ?# #????????????????##%#???????????????????????? | | ?# =#?????????????????#%#???????????????????????? | | ?# !%#?????????????????#%#????#######????????????? | | ?# [#?????????????????#s#????# #??####??????? | | ?# #???????????????###s######=% #### #??????? | | ?# #???????????????# g@ [ #??????? | | ?# #???????????????## g ########## ####??????? | | ?# #???????????????#"""""#??????# #????????? | | ?# #???????????????#######???#??# #?#####??? | | ?# #?????????????????????????# ?# #?# #??? | | ?# #?????????????????????????# ## ### < #??? | | ?# #?????????????????????????# # #??? | | ## #???????????????????????????# #??? | | #####???????????????????????# ######??? | | + ????????????????????????# ####???????? | | ?????????????????????????# #??????????? | | # #??????????????????????????# #?????????? | | # ##??#????????????????##### # #?????????? | | # #? #?????????????# ###?????????? | | #? #????????????????####### #??????????? | | # ## #??????#??????????????# #??????????? | | # # #??????# ????????????# #?????????? | | # ######### ######????# ##?????????? | | ####### #??????????? | | ## ?????????? | | ?# ### ???????? | | ?### ####### ## ## ###########??? ?????? | | ???###??????# ## ## #?????????????? " ???? | | ????????????" "??????????????? """??? | | ????????????" "????????????????#????? | +----------------------------------------------------+ Best States ------------- Heat Dissipation 50 Energy Generation 14 Energy Capacity 280 Matter Stores 300 Matter Capacity 300 Sight Range 18 Robot Scan Range 15 Terrain Scan Density 10 ECM Strength 1 Jamming Range 12 Weapon Shielding 33 Evasion (%) 64 Targeting Accuracy 5 Recoil Reduction 2 Offensive Hacking 20 Item Schematics ----------------- Cesium-ion Thruster | -8/Materials | Scanalyzed Hacking Suite | -8/Materials | Scanalyzed Robot Schematics ------------------ None Fabricated ------------ Cesium-ion Thruster | x2 | -7/Factory Repaired ---------- Carbon-fiber Leg | 39% | -8/Materials Studied --------- Cesium-ion Thruster | -7/Factory | Hacked Alien Tech Used ----------------- None Achievements -------------- Deadly Force Junior Dev Not Today, Chutes Oppo Buddy Recruitment Drive Challenges ------------ None Game ------ Seed WarlordExperimentalChip Manual? 0 Play Time 01:46:37 Cumulative 63.0 hours Start 2026.01.18 @ 10:25:56 End 2026.01.18 @ 12:28:10 Sessions 1 Manual Loads 0 Difficulty Rogue Special Mode None Game No. 74 Rogue 74 Adventurer 0 Explorer 0 Win Type - Total 1 Types 1/0/0/0/0/0/0/0/0/0 Lore% 26 Gallery% 33 Achievement% 25 Wizard Run 0 Options --------- Layout 0 ASCII 0 Keyboard 0 Movement Mouse Keybinds 0 Fullscreen 0 Font 16/SmallcapsGlow Map View 88x55 Zoom Use 0% Tactical HUD 1 Map Filters NONE Filters NONE Steam 1 RUN: d963f5ce-62da-4037-b083-f1220af6a986